Cogmind - Beta 16 @@@ ROGUE MODE // 2026.01.23 @ 16:17:27 Player: shapeshifter Result: Destroyed by S-43 Plague with Heavy Machine Gun Performance ------------- Evolutions (9) 4500 Regions Visited (20) 4000 Robots Destroyed (169) 845 Value Destroyed (6592) 6592 Prototype IDs (41) 820 Alien Tech Used (0) 0 Bonus (4939) 4939 TOTAL SCORE: 21696 Bonus ------- High Alert Combat Kills 1609 Follower Combat Kills 2367 Entered Garrisons 200 Entered DSFs 500 Aligned with FarCom 300 Friendly Fire -37 Cogmind --------- Core Integrity 0/1600 Matter 243/300 Energy 98/100 System Corruption 8% Temperature Cool (0) Movement Core (50) Location -1/Garrison Parts ------- > --- POWER (1) -------- (None) > --- PROPULSION (2) --- (None) > --- UTILITY (20) ----- Advanced Terrain Scan Processor Advanced Targeting Computer > --- WEAPON (2) ------- (None) > --- INVENTORY (5) ---- Improved Fusion Compressor Improved Energy Well (400) Improved Force Field Peak State ------------ > --- POWER ------------ Improved Fusion Compressor > --- PROPULSION ------- Wheel Centrium Wheel > --- UTILITY ---------- Energy Well Advanced Terrain Scanner Advanced Targeting Computer Core Analyzer Quantum Capacitor Hardened Medium Armor Plating Damper Plating Improved Hacking Suite Advanced Hacking Suite Tech Extrapolator > --- WEAPON ----------- KE Penetrator Enhanced Hardcell Cannon > --- INVENTORY -------- Latent Energy Streamer CPS Tube CPS Tube IN-MT5's Pitchfork "Insurrection" PL-3XN's Ring of Power [Rating: 108] Favorites ----------- Power Cooled Deuterium Engine Engine Cooled Deuterium Engine Power Core Improved Fusion Compressor Propulsion Armored Huge Wheel Wheel Armored Huge Wheel Hover Unit Backup Propulsion III Utility Core Analyzer Device Graphene Brace Storage Huge Storage Unit Processor Core Analyzer Hackware Hacking Suite Protection Improved Medium Armor Plating Weapon Heavy Ion Cannon Energy Gun Beam Rifle Energy Cannon Heavy Ion Cannon Ballistic Gun KE Penetrator Ballistic Cannon Enhanced Hardcell Cannon Launcher Mini Grenade Launcher Special Weapon CPS Tube Impact Weapon Maul Special Melee Weapon Improved Datajack Build | -11 -10 -10 -9 -9 -9 -8 -8 -7 -7 -7 -7 -5 -4 -4 -4 -3 -3 -2 -1 -1 ------- Run | Yrd Mat Min Mat Min Exi Min Mat Fac Sto Rec Scr Fac Fac Was Fac Res DSF Res Acc Gar Slots Evolved 18 | . . . 2 . . . 2 2 . . . 4 2 . . 2 . 2 2 . Power . | . . . . . . . . . . . . . . . . . . . . . Propulsion . | . . . . . . . . . . . . . . . . . . . . . Utility 18 | . . . 2 . . . 2 2 . . . 4 2 . . 2 . 2 2 . Weapon . | . . . . . . . . . . . . . . . . . . . . . Parts Attached 147 | 7 5 . 7 7 3 1 24 7 14 4 8 15 3 9 14 1 2 13 3 . Power 12 | 1 . . 2 1 . . 2 . 3 . . 1 1 . . . . 1 . . Engine 8 | 1 . . 2 1 . . 1 . 2 . . 1 . . . . . . . . Core 4 | . . . . . . . 1 . 1 . . . 1 . . . . 1 . . Reactor . | . . . . . . . . . . . . . . . . . . . . . Propulsion 23 | 2 1 . 1 3 . . 5 1 . . 2 . 1 . 2 . . 4 1 . Treads . | . . . . . . . . . . . . . . . . . . . . . Leg . | . . . . . . . . . . . . . . . . . . . . . Wheel 23 | 2 1 . 1 3 . . 5 1 . . 2 . 1 . 2 . . 4 1 . Hover . | . . . . . . . . . . . . . . . . . . . . . Flight . | . . . . . . . . . . . . . . . . . . . . . Utility 76 | 2 2 . 4 . 3 . 11 6 4 3 4 12 1 5 8 1 2 6 2 . Device 24 | 1 1 . 3 . 2 . 2 1 2 . . 5 1 . 3 . . 3 . . Storage 10 | 1 1 . 1 . 1 . 1 . 1 . . . . . 3 1 . . . . Processor 9 | . . . . . . . . 2 . . . 3 . . 1 . . 2 1 . Hackware 11 | . . . . . . . 5 . . . . 3 . . . . 2 . 1 . Protection 22 | . . . . . . . 3 3 1 3 4 1 . 5 1 . . 1 . . Artifact . | . . . . . . . . . . . . . . . . . . . . . Weapon 36 | 2 2 . . 3 . 1 6 . 7 1 2 2 . 4 4 . . 2 . . Energy Gun 5 | 1 2 . . 2 . . . . . . . . . . . . . . . . Energy Cannon 9 | . . . . . . . 3 . 3 . 1 . . . 1 . . 1 . . Ballistic Gun 7 | 1 . . . . . 1 2 . . . . 1 . . 1 . . 1 . . Ballistic Cannon 7 | . . . . . . . 1 . . . . 1 . 4 1 . . . . . Launcher 5 | . . . . 1 . . . . 4 . . . . . . . . . . . Special Weapon 1 | . . . . . . . . . . . . . . . 1 . . . . . Impact Weapon 1 | . . . . . . . . . . . 1 . . . . . . . . . Slashing Weapon . | . . . . . . . . . . . . . . . . . . . . . Piercing Weapon . | . . . . . . . . . . . . . . . . . . . . . Special Melee Weapon 1 | . . . . . . . . . . 1 . . . . . . . . . . Unidentified Prototypes 11 | . . . . . . . . . 7 1 . 1 . 1 . 1 . . . . Corrupted Parts 2 | . . . . . . . . . . . . 2 . . . . . . . . System Corruption 11 | . . . . . . . . . . . . 11 . . . . . . . . Parts Lost 85 | . . . 2 10 . . 14 1 . . 16 9 . . 16 . 3 7 7 . Power 8 | . . . 1 1 . . 2 . . . 1 2 . . 1 . . . . . Propulsion 18 | . . . 1 3 . . 3 . . . 2 1 . . 3 . . 4 1 . Utility 42 | . . . . 3 . . 5 1 . . 10 4 . . 9 . 3 2 5 . Weapon 17 | . . . . 3 . . 4 . . . 3 2 . . 3 . . 1 1 . Highest Loss Streak 16 | . . . 2 8 . . 11 1 . . 16 6 . . 10 . 3 3 6 . To Critical Strikes . | . . . . . . . . . . . . . . . . . . . . . Average Backups 13 | 1 6 12 14 11 9 9 9 14 17 19 20 6 4 4 4 4 4 3 3 3 Power . | . 1 1 . . . . . . . 1 . . . . . . . . 1 1 Propulsion 1 | . 1 2 1 . . . 1 2 2 2 1 . . . . . . . . . Utility 7 | . 2 6 7 9 8 7 4 8 11 11 9 1 . 1 . 1 2 1 1 2 Weapon 3 | . 1 2 3 . . 1 3 3 3 4 4 1 1 1 1 2 2 1 . . Tool/Special . | . . . . . . . . . . . . . . . . . . . . . Unused Backups 32 | . 1 . 3 . . . 5 3 5 3 3 5 . . 1 . . 2 . 1 Power 4 | . . . 2 . . . . . . . . 1 . . . . . 1 . . Propulsion . | . . . . . . . . . . . . . . . . . . . . . Utility 14 | . . . . . . . . 2 4 3 3 1 . . . . . . . 1 Weapon 6 | . 1 . 1 . . . 4 . . . . . . . . . . . . . Tool/Special 8 | . . . . . . . 1 1 1 . . 3 . . 1 . . 1 . . Average Slot Usage (%) 82 | . 99 100 97 72 72 88 73 84 91 92 91 58 55 85 76 19 14 32 25 8 Engine 5 | . 14 14 10 10 11 11 5 . 3 7 6 1 . . . . . . . . Core 1 | . . . . . . . . 7 3 . . . . 5 4 . . 2 . . Wheel 9 | . 28 28 21 20 22 22 13 6 7 7 6 2 4 5 8 . . 4 1 . Device 17 | . 14 14 31 9 5 22 11 7 21 23 23 10 8 10 12 4 4 7 3 . Storage 7 | . 14 14 11 11 12 11 8 7 7 7 7 2 . . 6 . . 1 . . Processor 7 | . . . . . . . . 6 7 7 7 16 21 19 14 9 5 6 14 8 Hackware 5 | . . . . . . . 19 9 7 7 1 9 15 15 9 4 2 4 5 . Protection 11 | . . . . . . . 5 20 16 15 20 3 5 15 7 . . 2 . . Energy Gun 4 | . 14 28 22 21 22 12 2 . . . . . . 1 . . . . . . Energy Cannon 8 | . . . . . . . 1 15 14 14 14 3 . . . . . 1 . . Ballistic Cannon 1 | . . . . . . . 3 . . . . 2 . 7 6 . . . . . Peak Build Rating 108 | 7 11 12 18 18 16 18 49 59 64 69 68 66 74 104 108 30 23 72 40 9 Average Rating 52 | 4 7 11 16 12 12 17 30 54 60 63 63 51 64 89 96 23 17 38 28 9 On Entrance 32 | . 7 11 12 18 11 16 18 49 58 63 64 34 47 74 104 23 23 17 25 9 Avg Prop Armor Cover (%) 9 | . . . . . . . 16 . . . . . . 2 2 . . 21 15 . Naked Turns . | . . . . . . . . . . . . . . . . . . . . . Heaviest Build 145 | 15 33 33 37 57 53 28 76 90 138 138 145 126 15 82 97 1 1 40 1 . Greatest Support 32 | 26 26 26 32 32 26 26 28 28 28 28 28 28 16 16 26 3 3 20 3 3 Greatest Overweight (x) 7 | . 1 1 1 3 2 1 3 3 4 4 5 4 . 5 6 . . 7 . . Average Overweight (x) 2 | . . 1 . 1 . 1 1 2 3 4 4 1 . 2 2 . . . . . Largest Inventory Capacity 25 | 8 15 15 20 20 20 10 20 20 25 25 25 25 5 5 20 5 5 5 5 5 Average Capacity 18 | 6 9 15 15 19 13 10 15 20 22 25 25 16 5 5 8 5 5 5 5 5 Most Carried 25 | 5 15 13 15 16 11 10 20 20 25 25 25 12 5 5 9 5 5 5 4 3 Average Carried 16 | 2 6 12 14 11 9 9 11 19 22 24 24 7 5 5 5 4 5 3 3 3 Final Capacity 25 | 8 15 15 15 20 10 10 20 20 25 25 25 5 5 5 5 5 5 5 5 5 Final Carried 25 | 3 11 13 15 10 9 9 17 20 25 25 13 5 5 5 5 5 5 4 3 3 Class Distribution -------------------- 41% | Commander-Mutant 40% | Mutant 8% | Hacker-Skirmisher 7% | Hacker-Mutant Dominant Class ---------------- Mutant | -10/Materials Mutant | -10/Mines Mutant | -9/Materials Mutant | -9/Mines Mutant | -9/Exiles Mutant | -8/Mines Hacker-Mutant | -8/Materials Mutant | -7/Factory Mutant | -7/Storage Commander-Mutant | -7/Recycling Commander-Mutant | -7/Scraptown Mutant | -5/Factory Hacker-Mutant | -4/Factory Hacker-Skirmisher | -4/Waste Hacker-Skirmisher | -4/Factory Mutant | -3/Research Mutant | -3/DSF Mutant | -2/Research Mutant | -1/Access Mutant | -1/Garrison Resources | -11 -10 -10 -9 -9 -9 -8 -8 -7 -7 -7 -7 -5 -4 -4 -4 -3 -3 -2 -1 -1 ----------- Run | Yrd Mat Min Mat Min Exi Min Mat Fac Sto Rec Scr Fac Fac Was Fac Res DSF Res Acc Gar Matter Collected 4033 | 268 12 120 80 140 . 42 258 143 401 80 255 234 . 371 989 . 61 557 22 . Remotely . | . . . . . . . . . . . . . . . . . . . . . Salvage Created 7303 | 39 69 41 355 250 . 42 375 334 442 306 1264 318 . . 2634 . . 570 264 . Parts 373 | 3 8 3 23 15 . 2 24 24 24 10 66 17 . . 125 . . 19 10 . Haulers Intercepted 4 | . . . . . . . 1 . 2 . . . . . . . . . 1 . Recyclers Shooed 7 | . . . 1 . . . 1 . 1 . . 2 1 . 1 . . . . . Parts Field Recycled . | . . . . . . . . . . . . . . . . . . . . . Retrieved Matter . | . . . . . . . . . . . . . . . . . . . . . Parts Self-Destructed 2 | . . . . . . . . . . . 2 . . . . . . . . . Prevented . | . . . . . . . . . . . . . . . . . . . . . Parts Restored . | . . . . . . . . . . . . . . . . . . . . . Kills | -11 -10 -10 -9 -9 -9 -8 -8 -7 -7 -7 -7 -5 -4 -4 -4 -3 -3 -2 -1 -1 ------- Run | Yrd Mat Min Mat Min Exi Min Mat Fac Sto Rec Scr Fac Fac Was Fac Res DSF Res Acc Gar Combat Hostiles Destroyed 131 | . 3 . 9 25 . 1 10 4 5 5 22 9 . . 33 . . 4 1 . Guns 26 | . 3 . 7 6 . 1 4 . . . . . . . 5 . . . . . Cannons 43 | . . . . . . . 6 4 5 5 . 9 . . 14 . . . . . AOE 49 | . . . . 19 . . . . . . 21 . . . 6 . . 2 1 . Classes Destroyed 24 | 1 2 1 3 2 . 1 3 2 . 1 6 . . . 2 . . . . . Worker 23 | . . 1 . 2 . . . . . . 1 1 . . 11 . . 4 3 . Builder 13 | . . . . . . . 1 4 . . . 1 . . 6 . . 1 . . Tunneler 4 | 2 . 1 . 1 . . . . . . . . . . . . . . . . Hauler 4 | . . . . . . . 1 . 2 . . . . . . . . . 1 . Recycler 4 | . . . . . . . . 1 1 . . . . . 2 . . . . . Mechanic 2 | . . . . . . . . . . . . . . . 2 . . . . . Operator 2 | . . . 1 . . . . . . . . . . . . . . . 1 . Watcher 5 | . 1 . . . . . . . 1 . . . . . 1 . . 2 . . Swarmer 16 | . 3 . 1 4 . . 2 . . . . 3 . . 3 . . . . . Grunt 36 | . . . 6 . . . 4 . . 3 . 2 . . 17 . . 3 1 . Duelist 3 | . . . . . . . . . . . . . . . 3 . . . . . Protector 2 | . . . . . . . . . . 1 . . . . 1 . . . . . Sentry 8 | . . . 2 . . . 2 2 1 . . . . . 1 . . . . . Demolisher 2 | . . . . 2 . . . . . . . . . . . . . . . . Hunter 10 | . . . . . . 1 1 1 2 . . 1 . . 4 . . . . . Programmer 12 | . . . . . . . . 1 2 1 . 3 . . 4 . . 1 . . Heavy 1 | . . . . . . . 1 . . . . . . . . . . . . . Bolteater 1 | . . . . . . . . . . . 1 . . . . . . . . . Federalist 1 | . . . . . . . . . . . 1 . . . . . . . . . Explorer 5 | . . . . . . . . . . . 5 . . . . . . . . . Ranger 2 | . . . . . . . . . . . 2 . . . . . . . . . Scrapper 7 | . . . . . . . . . . . 7 . . . . . . . . . Elite 5 | . . . . . . . . . . . 5 . . . . . . . . . Assembled 19 | . . . . 19 . . . . . . . . . . . . . . . . Thug 1 | . . . . . . . . . . . 1 . . . . . . . . . Best Kill Streak 19 | 1 3 1 4 19 . 1 5 5 2 3 11 6 . . 13 . . 5 5 . Combat Bots Only 19 | . 3 . 4 19 . 1 4 1 2 3 10 6 . . 7 . . 2 1 . Max Kills in Single Turn 5 | 1 1 1 1 3 . 1 1 3 1 1 5 1 . . 5 . . 2 5 . Gunslinging 1 | . . . . 1 . . . . . . . . . . . . . . . . Exploded 5 | . . . . 3 . . . . . . 5 . . . 2 . . 1 1 . Melee . | . . . . . . . . . . . . . . . . . . . . . Uniques/NPCs Destroyed . | . . . . . . . . . . . . . . . . . . . . . Combat | -11 -10 -10 -9 -9 -9 -8 -8 -7 -7 -7 -7 -5 -4 -4 -4 -3 -3 -2 -1 -1 -------- Run | Yrd Mat Min Mat Min Exi Min Mat Fac Sto Rec Scr Fac Fac Was Fac Res DSF Res Acc Gar Hostile Shots Fired 1462 | . 14 . 36 52 . 4 148 61 62 59 309 128 . . 315 . 25 96 87 66 Missed 463 | . 1 . 14 11 . . 34 25 18 29 98 37 . . 96 . 8 37 36 19 Hits 999 | . 13 . 22 41 . 4 114 36 44 30 211 91 . . 219 . 17 59 51 47 Melee 11 | . . . . 5 . . . . . . 6 . . . . . . . . . Projectile 988 | . 13 . 22 36 . 4 114 36 44 30 205 91 . . 219 . 17 59 51 47 AOE 9 | . . . . 8 . . . . . . . . . . 1 . . . . . Critical Strikes 46 | . . . . . . . 4 . . . 15 6 . . 10 . . 7 4 . Actively Blocked 38 | . . . . . . . 1 . . . 15 6 . . 7 . . 7 2 . Damage Taken 18204 | . 108 . 260 1009 . 60 1942 703 405 170 3559 1664 . . 3918 . 925 1539 1101 841 Core 5385 | . 31 . 61 299 . 20 311 . 4 9 425 467 . . 861 . 889 392 793 823 Absorbed by Shields 451 | . . . . . . . . . . 94 21 . . . 268 . . . . 68 Redirected to Shielding 45 | . . . . . . . . . . . . 45 . . . . . . . . Ignored by Resistances 903 | . . . . . . . . . 111 39 301 48 . . 404 . . . . . Regen/Repaired (Parts) 826 | . . . . . . . . 430 . . . 112 . . 284 . . . . . Core Remaining (%) 50 | 100 . 87 . . . 5 43 . . . 37 53 . . 25 . 31 72 . . Volleys Fired 477 | 5 23 5 30 40 . 3 53 34 42 19 14 52 . . 125 . . 30 2 . Largest 2 | 2 2 2 2 2 . 2 2 2 2 2 2 2 . . 2 . . 1 1 . Hottest 145 | 70 70 112 112 112 . 112 84 130 130 130 145 130 . . 113 . . 105 60 . Shots Fired 726 | 10 46 10 60 65 . 6 63 68 84 38 17 75 . . 156 . . 26 2 . Gun 269 | 10 46 10 60 50 . 6 36 . . . . 5 . . 45 . . 1 . . Cannon 437 | . . . . . . . 27 68 84 38 12 70 . . 111 . . 25 2 . Launcher 20 | . . . . 15 . . . . . . 5 . . . . . . . . . Special . | . . . . . . . . . . . . . . . . . . . . . Kinetic 261 | 5 23 . . . . . 45 . . . . 40 . . 147 . . 1 . . Thermal 418 | 5 23 10 60 50 . 6 18 68 84 38 7 35 . . . . . 14 . . Explosive 20 | . . . . 15 . . . . . . 5 . . . . . . . . . Electromagnetic 27 | . . . . . . . . . . . 5 . . . 9 . . 11 2 . Robot Hit Streak 12 | 4 4 6 8 12 . 5 10 8 7 8 5 5 . . 7 . . 5 1 . Robot Miss Streak 8 | 2 4 1 3 2 . 1 3 3 5 3 2 4 . . 8 . . 2 1 . Penetration Max 1 | . . . . . . . 1 . . . . . . . 1 . . . . . Secondary Targets 4 | . . . 2 2 . . . . . . . . . . . . . . . . Max Gunslinging Chain 1 | . . . 1 1 . . . . . . . . . . . . . . . . Shots Hit Robots 439 | 6 18 7 39 43 . 4 51 20 33 65 9 43 . . 83 . . 17 1 . Core Hits 350 | 2 5 2 15 49 . 2 17 13 12 11 55 19 . . 101 . . 35 12 . Critical Kills 1 | . . . . . . . . . . . . . . . 1 . . . . . Critical Parts Destroyed 1 | . . . . . . . . . . . 1 . . . . . . . . . Critical Strikes 30 | . 2 3 5 4 . . 4 . . . 1 3 . . 8 . . . . . Burn 14 | . 2 3 5 4 . . . . . . . . . . . . . . . . Destroy 1 | . . . . . . . . . . . . . . . 1 . . . . . Blast 14 | . . . . . . . 4 . . . . 3 . . 7 . . . . . Smash 1 | . . . . . . . . . . . 1 . . . . . . . . . Melee Attacks 42 | . . . . . . . . . . 40 2 . . . . . . . . . Impact 2 | . . . . . . . . . . . 2 . . . . . . . . . Slashing . | . . . . . . . . . . . . . . . . . . . . . Piercing . | . . . . . . . . . . . . . . . . . . . . . Sneak Attacks 40 | . . . . . . . . . . 40 . . . . . . . . . . Combat Hostiles . | . . . . . . . . . . . . . . . . . . . . . Follow-up Attacks . | . . . . . . . . . . . . . . . . . . . . . Damage Inflicted 21208 | 76 254 103 580 1801 . 58 1514 930 976 782 3233 1432 2 . 7003 . . 1742 722 . Guns 2806 | 76 252 103 580 510 . 58 578 . . . . 15 . . 612 . . 22 . . Cannons 7509 | . . . . . . . 936 564 976 782 47 1393 . . 2420 . . 386 5 . Explosions 10820 | . . . . 1291 . . . 366 . . 3153 . . . 3971 . . 1326 713 . Melee 33 | . . . . . . . . . . . 33 . . . . . . . . . Ramming 40 | . 2 . . . . . . . . . . 24 2 . . . . 8 4 . Kinetic 5139 | 37 152 . . . . . 1214 . . . . 703 . . 3011 . . 22 . . Thermal 5847 | 39 100 103 580 510 . 58 300 564 976 782 26 705 . . 590 . . 358 156 . Explosive 3170 | . . . . 1291 . . . 366 . . 1043 . . . 470 . . . . . Electromagnetic 6979 | . . . . . . . . . . . 2131 . . . 2932 . . 1354 562 . Impact 33 | . . . . . . . . . . . 33 . . . . . . . . . Slashing . | . . . . . . . . . . . . . . . . . . . . . Piercing . | . . . . . . . . . . . . . . . . . . . . . Highest Corruption 26 | . . . . . . . . . . . 15 26 . . 24 . 3 26 8 8 Average Corruption 13 | . . . . . . . . . . . 6 16 . . 15 . 2 13 5 8 Corruption Purged 6 | . . . . . . . . . . . . . . . . . . 6 . . Corruption Blocked . | . . . . . . . . . . . . . . . . . . . . . Effects 98 | . . . . . . . . . . . 5 37 . . 18 . 1 28 6 3 Message Errors 25 | . . . . . . . . . . . . 8 . . 5 . 1 9 2 . Matter Fused 13 | . . . . . . . . . . . . 7 . . 1 . . 2 1 2 Heat Flow Errors 11 | . . . . . . . . . . . 1 6 . . 2 . . . 2 . Energy Discharges 11 | . . . . . . . . . . . 1 5 . . 1 . . 3 . 1 Parts Rejected 1 | . . . . . . . . . . . . . . . . . . 1 . . Data Loss (minor) 10 | . . . . . . . . . . . 1 2 . . 2 . . 4 1 . Data Loss (major) 4 | . . . . . . . . . . . 2 1 . . . . . 1 . . Misfires 4 | . . . . . . . . . . . . 4 . . . . . . . . Misdirections 11 | . . . . . . . . . . . . 3 . . 4 . . 4 . . Weapon Failures 8 | . . . . . . . . . . . . 1 . . 3 . . 4 . . Overload Shots . | . . . . . . . . . . . . . . . . . . . . . Overflow Damage 291 | . . . . 32 . . 24 . . 14 73 27 . . 86 . . 35 . . Projectiles 88 | . . . . . . . 24 . . 14 15 27 . . 8 . . . . . Explosions 170 | . . . . 32 . . . . . . 25 . . . 78 . . 35 . . Melee 33 | . . . . . . . . . . . 33 . . . . . . . . . Knockbacks 21 | . . . . . . . 3 . . . . 5 . . 13 . . . . . Impact . | . . . . . . . . . . . . . . . . . . . . . Kinetic 21 | . . . . . . . 3 . . . . 5 . . 13 . . . . . Secondary . | . . . . . . . . . . . . . . . . . . . . . Self-Inflicted Damage 769 | . 1 . . 216 . . . 372 . . 148 11 . . 16 . . 3 2 . Shots 18 | . . . . 8 . . . 4 . . 5 . . . 1 . . . . . Rammed 11 | . 1 . . . . . . . . . . 3 4 . . . . 2 1 . Targets Rammed 11 | . 1 . . . . . . . . . . 3 4 . . . . 2 1 . Kicked . | . . . . . . . . . . . . . . . . . . . . . Crushed . | . . . . . . . . . . . . . . . . . . . . . Highest Temperature 360 | 36 54 . . 285 . 135 319 360 162 10 236 267 . . 328 . . 112 240 . Average Temperature 95 | 16 18 . . 108 . 68 95 113 51 3 114 129 . . 128 . . 29 108 . Received Heat Transfer 2404 | . . . 117 20 . . 558 66 66 61 738 108 . . 286 . . 252 90 42 Effects 12 | . . . . . . . . 1 . . . 4 . . 7 . . . . . Energy Bleed 1 | . . . . . . . . 1 . . . . . . . . . . . . Interference 11 | . . . . . . . . . . . . 4 . . 7 . . . . . Siege Activations . | . . . . . . . . . . . . . . . . . . . . . Martial Activations . | . . . . . . . . . . . . . . . . . . . . . Shielding Activations . | . . . . . . . . . . . . . . . . . . . . . Robots Disrupted . | . . . . . . . . . . . . . . . . . . . . . Combat Hostiles . | . . . . . . . . . . . . . . . . . . . . . Robots Corrupted 13 | . . . . . . . . . . . 1 . . . 9 . . 3 . . Combat Hostiles 11 | . . . . . . . . . . . 1 . . . 8 . . 2 . . Parts Fried 38 | . . . . . . . . . . . 4 . . . 21 . . 9 4 . Impact Corruptions 2 | . . . . . . . . . . . 2 . . . . . . . . . Robots Melted 2 | . . . 2 . . . . . . . . . . . . . . . . . Combat Hostiles 2 | . . . 2 . . . . . . . . . . . . . . . . . Parts Melted 18 | . . . 8 2 . 1 . 2 1 . 1 2 . . 1 . . . . . Heat Transferred 10273 | 111 444 481 1850 1591 . 148 481 740 1332 1037 37 851 . . 650 . . 370 150 . Parts Sabotaged . | . . . . . . . . . . . . . . . . . . . . . Parts Stolen . | . . . . . . . . . . . . . . . . . . . . . Parts Stripped . | . . . . . . . . . . . . . . . . . . . . . Power Chain Reactions 6 | . . . . . . . . . . . 1 . . . 3 . . . 2 . Latent Energy Used 3803 | . . . . . . . . . . . 1000 . . . 1298 . . 1168 337 . LE Corruption 64 | . . . . . . . . . . . 15 . . . 22 . . 21 6 . Alert | -11 -10 -10 -9 -9 -9 -8 -8 -7 -7 -7 -7 -5 -4 -4 -4 -3 -3 -2 -1 -1 ------- Run | Yrd Mat Min Mat Min Exi Min Mat Fac Sto Rec Scr Fac Fac Was Fac Res DSF Res Acc Gar Maximum Alert Level 5 | . . . 1 . . . . . . . . . . . 5 3 2 4 3 2 Low Security (%) 79 | 100 100 100 58 100 . 100 100 100 100 100 . 100 100 100 8 . . . . . Level 1 5 | . . . 41 . . . . . . . . . . . 27 . . 17 . . Level 2 3 | . . . . . . . . . . . . . . . 3 . 100 41 . 100 Level 3 3 | . . . . . . . . . . . . . . . 9 100 . 11 100 . Level 4 5 | . . . . . . . . . . . . . . . 34 . . 30 . . Level 5 1 | . . . . . . . . . . . . . . . 17 . . . . . High Security . | . . . . . . . . . . . . . . . . . . . . . Max Security . | . . . . . . . . . . . . . . . . . . . . . Peak Influence 1793 | 5 65 7 254 173 . 30 196 142 130 122 . 78 39 66 1793 879 651 1253 846 619 Initial 879 | . . 7 . 83 . . . 78 45 15 . . 7 . . 879 651 348 724 589 Average 187 | . 12 . 140 88 . 5 113 42 37 11 . 14 14 12 917 874 634 756 800 593 Influence Increases 6850 | 10 92 10 459 223 . 30 444 312 555 290 15 259 42 96 2381 . . 1419 183 30 Destroy 0b10 Robot/C 2780 | . 60 . 300 120 . 20 200 80 200 100 . 180 . . 860 . . 640 20 . Destroy 0b10 Robot/NC 380 | 10 5 10 5 15 . . 10 25 20 15 15 10 . . 130 . . 85 25 . Destroy Leader 650 | . 12 . 70 20 . 10 72 40 96 . . 40 . . 144 . . 134 12 . Allied During Kill 787 | . . . 28 . . . . . 70 59 . . . . 388 . . 242 . . Successful Hack 206 | . . . 11 . . . 3 7 48 19 . . 42 . 31 . . 24 21 . Select Force Hacks 90 | . . . . . . . . . . 90 . . . . . . . . . . Disable Machine 675 | . . . 15 . . . . 105 90 . . . . . 420 . . 45 . . Destroy Structure 832 | . . . . 68 . . 9 55 31 7 . 14 . 96 378 . . 114 60 . Partial Spotted 30 | . . . . . . . . . . . . . . . . . . 15 . 15 Lose Combat Pursuer 420 | . 15 . 30 . . . 150 . . . . 15 . . 30 . . 120 45 15 Influence Decreases 6231 | 10 73 29 245 437 . 30 271 385 615 330 15 244 57 96 704 808 248 833 653 148 Entered New Map 2246 | . . 12 . 131 . . . 95 55 25 . . 8 . . 798 218 273 483 148 Time Decay 2750 | 10 73 17 185 206 . 30 191 290 364 272 1 172 49 96 414 10 . 270 100 . Lost Part 611 | . . . 20 100 . . 80 . . . 9 72 . . 160 . 30 70 70 . Lost Ally 567 | . . . 40 . . . . . 162 10 5 . . . 130 . . 220 . . Purge Threat 57 | . . . . . . . . . 34 23 . . . . . . . . . . Squads Dispatched 46 | . 1 . 2 . . . 6 4 6 . . 6 1 . 7 . . 8 5 . Investigation 13 | . . . 1 . . . . 1 3 . . . . . 2 . . 1 5 . Extermination 9 | . . . . . . . . 1 2 . . 2 . . 2 . . 2 . . Reinforcement 13 | . 1 . 1 . . . 3 2 1 . . 1 1 . . . . 3 . . Assault 5 | . . . . . . . . . . . . . . . 3 . . 2 . . Garrison 6 | . . . . . . . 3 . . . . 3 . . . . . . . . Intercept . | . . . . . . . . . . . . . . . . . . . . . Searches Triggered . | . . . . . . . . . . . . . . . . . . . . . Construction Impeded 1 | . . . . . . . 1 . . . . . . . . . . . . . Haulers Reinforced 2 | . . . . . . . . . 1 . . . . . . . . 1 . . Active Scanning Responses . | . . . . . . . . . . . . . . . . . . . . . Cargo Convoy Interrupts . | . . . . . . . . . . . . . . . . . . . . . Stealth | -11 -10 -10 -9 -9 -9 -8 -8 -7 -7 -7 -7 -5 -4 -4 -4 -3 -3 -2 -1 -1 --------- Run | Yrd Mat Min Mat Min Exi Min Mat Fac Sto Rec Scr Fac Fac Was Fac Res DSF Res Acc Gar Distress Signals 13 | . . . . . . . . . . . . . . . 3 . . 7 3 . Communications Jammed 35 | . . . . . . . . . 1 34 . . . . . . . . . . Distress Signals 35 | . . . . . . . . . 1 34 . . . . . . . . . . Times Spotted 287 | . 7 . 19 23 . 1 17 10 10 12 30 16 1 2 59 . 2 46 16 16 Peak Tracking Total 29 | . 2 . 5 10 . 1 6 1 2 2 29 4 1 2 8 . 2 7 12 18 Tactical Retreats 17 | . 1 . 1 . . . 5 . . . . 2 . . 2 . . 3 2 1 ECM-based Alert Blocks 2 | . . . . . . . . . . . . 2 . . . . . . . . Traps | -11 -10 -10 -9 -9 -9 -8 -8 -7 -7 -7 -7 -5 -4 -4 -4 -3 -3 -2 -1 -1 ------- Run | Yrd Mat Min Mat Min Exi Min Mat Fac Sto Rec Scr Fac Fac Was Fac Res DSF Res Acc Gar Traps Triggered 14 | . . . 1 . . . 1 . 2 . . . 1 . 3 . . 3 . 3 Indirectly 1 | . . . . . . . . . . . . . . . . . . 1 . . Trap Hack Attempts . | . . . . . . . . . . . . . . . . . . . . . Triggered . | . . . . . . . . . . . . . . . . . . . . . Disarmed . | . . . . . . . . . . . . . . . . . . . . . Reprogrammed . | . . . . . . . . . . . . . . . . . . . . . Reused . | . . . . . . . . . . . . . . . . . . . . . Traps Extracted . | . . . . . . . . . . . . . . . . . . . . . Installed . | . . . . . . . . . . . . . . . . . . . . . Triggered . | . . . . . . . . . . . . . . . . . . . . . Machines | -11 -10 -10 -9 -9 -9 -8 -8 -7 -7 -7 -7 -5 -4 -4 -4 -3 -3 -2 -1 -1 ---------- Run | Yrd Mat Min Mat Min Exi Min Mat Fac Sto Rec Scr Fac Fac Was Fac Res DSF Res Acc Gar Machines Disabled 50 | . . . 1 . . . . 7 6 . 5 . . . 28 . . 3 . . Max in Single Turn 4 | . . . . . . . . 3 1 . 1 . . . 4 . . 1 . . Machines Repaired . | . . . . . . . . . . . . . . . . . . . . . Machines Dismantled . | . . . . . . . . . . . . . . . . . . . . . Machines Sabotaged . | . . . . . . . . . . . . . . . . . . . . . Overloaded Fab Kills . | . . . . . . . . . . . . . . . . . . . . . Hacking | -11 -10 -10 -9 -9 -9 -8 -8 -7 -7 -7 -7 -5 -4 -4 -4 -3 -3 -2 -1 -1 --------- Run | Yrd Mat Min Mat Min Exi Min Mat Fac Sto Rec Scr Fac Fac Was Fac Res DSF Res Acc Gar Machines Accessed 64 | . 1 . 6 . 2 . 1 9 11 8 . 4 3 . 6 2 . 5 6 . Terminals 35 | . . . 4 . . . 1 1 9 4 . 2 2 . 3 1 . 4 4 . Fabricators 4 | . . . . . . . . 1 . . . . . . 3 . . . . . Repair Stations 2 | . . . . . . . . 1 . . . 1 . . . . . . . . Recycling Units 15 | . 1 . 1 . . . . 3 2 4 . 1 1 . . 1 . . 1 . Scanalyzers 4 | . . . 1 . . . . 2 . . . . . . . . . 1 . . Garrison Access 2 | . . . . . . . . 1 . . . . . . . . . . 1 . Total Hacks 149 | . 3 . 14 . 2 . 3 21 26 23 . 7 9 . 17 3 . 7 14 . Successful 86 | . 1 . 9 . 2 . 2 14 17 18 . 2 4 . 11 3 . 2 1 . Failed 61 | . 2 . 4 . . . 1 6 9 5 . 5 5 . 6 . . 5 13 . Catastrophic 11 | . . . . . . . . 1 2 . . 2 . . . . . 2 4 . Database Lockouts 2 | . . . 1 . . . . 1 . . . . . . . . . . . . Manual 57 | . . . 9 . 1 . 3 . 17 17 . 3 . . 7 . . . . . Terminals 86 | . . . 9 . . . 3 2 23 14 . 3 7 . 9 1 . 6 9 . Fabricators 9 | . . . . . . . . 1 . . . . . . 8 . . . . . Repair Stations 8 | . . . . . . . . 6 . . . 2 . . . . . . . . Recycling Units 31 | . 3 . 3 . . . . 5 3 9 . 2 2 . . 2 . . 2 . Scanalyzers 6 | . . . 2 . . . . 3 . . . . . . . . . 1 . . Garrison Access 7 | . . . . . . . . 4 . . . . . . . . . . 3 . Terminal Hacks 29 | . . . 1 . 2 . 1 . 8 3 . . 4 . 7 1 . 2 . . Record 1 | . . . . . 1 . . . . . . . . . . . . . . . Part Schematic 1 | . . . . . . . . . 1 . . . . . . . . . . . Prototype ID Bank 1 | . . . . . . . . . . . . . 1 . . . . . . . Open Door 4 | . . . . . . . . . 4 . . . . . . . . . . . Open DSF 1 | . . . . . . . . . . . . . . . . 1 . . . . Branch Access Points 2 | . . . . . . . . . . . . . 1 . 1 . . . . . Emergency Access Points 2 | . . . . . . . . . . . . . . . 1 . . 1 . . Terminal Index 3 | . . . . . . . 1 . 1 . . . . . 1 . . . . . Fabricator Index 1 | . . . . . . . . . . . . . . . 1 . . . . . Repair Station Index 1 | . . . . . . . . . . . . . 1 . . . . . . . Garrison Index 1 | . . . . . . . . . . . . . . . 1 . . . . . Unreport Threat 2 | . . . . . . . . . 1 1 . . . . . . . . . . Locate Traps 2 | . . . . . . . . . 1 . . . . . 1 . . . . . Registered Prototypes 1 | . . . . . . . . . . . . . 1 . . . . . . . Zone Layout 5 | . . . 1 . . . . . . 2 . . . . 1 . . 1 . . Proto ID Catalog 1 | . . . . . 1 . . . . . . . . . . . . . . . Fabricator Hacks 5 | . . . . . . . . 1 . . . . . . 4 . . . . . Network Status 1 | . . . . . . . . 1 . . . . . . . . . . . . Load Schematic 2 | . . . . . . . . . . . . . . . 2 . . . . . Build 2 | . . . . . . . . . . . . . . . 2 . . . . . Repair Station Hacks 8 | . . . . . . . . 6 . . . 2 . . . . . . . . Scan Component 4 | . . . . . . . . 3 . . . 1 . . . . . . . . Repair 4 | . . . . . . . . 3 . . . 1 . . . . . . . . Recycling Unit Hacks 14 | . 1 . 1 . . . . 5 1 4 . . . . . 2 . . . . Process 1 | . . . . . . . . . . . . . . . . 1 . . . . Retrieve Matter 3 | . . . . . . . . 2 . . . . . . . 1 . . . . Retrieve Components 10 | . 1 . 1 . . . . 3 1 4 . . . . . . . . . . Scanalyzer 3 | . . . 1 . . . . 2 . . . . . . . . . . . . Insert Component 1 | . . . . . . . . 1 . . . . . . . . . . . . Retrieve Study 2 | . . . 1 . . . . 1 . . . . . . . . . . . . Garrison Access Hacks 1 | . . . . . . . . . . . . . . . . . . . 1 . Unlock Access 1 | . . . . . . . . . . . . . . . . . . . 1 . Unauthorized Hacks 26 | . . . 6 . . . 1 . 8 11 . . . . . . . . . . Terminals 23 | . . . 6 . . . 1 . 8 8 . . . . . . . . . . Botnet 8 | . . . 2 . . . . . 2 4 . . . . . . . . . . Operators 1 | . . . . . . . . . 1 . . . . . . . . . . . Skim 14 | . . . 4 . . . 1 . 5 4 . . . . . . . . . . Fabricators . | . . . . . . . . . . . . . . . . . . . . . Repair Stations . | . . . . . . . . . . . . . . . . . . . . . Recycling Units 3 | . . . . . . . . . . 3 . . . . . . . . . . Tunnel 3 | . . . . . . . . . . 3 . . . . . . . . . . Scanalyzers . | . . . . . . . . . . . . . . . . . . . . . Garrison Access . | . . . . . . . . . . . . . . . . . . . . . Data Cores Recovered 2 | . . . . . . . . . . . . . . . . . . 1 1 . Used 1 | . . . . . . . . . . . . . . . . . . . 1 . Hacking Detections 48 | . 1 . 6 . . . 1 6 7 4 . 3 3 . 5 1 . 5 6 . Full Trace Events 12 | . . . . . . . . 1 3 1 . . . . 2 . . . 5 . Feedback Events 1 | . . . . . . . . 1 . . . . . . . . . . . . Hackware Fried 1 | . . . . . . . . 1 . . . . . . . . . . . . Feedback Blocked . | . . . . . . . . . . . . . . . . . . . . . Robot Schematics Acquired . | . . . . . . . . . . . . . . . . . . . . . Robots Built . | . . . . . . . . . . . . . . . . . . . . . Authchips . | . . . . . . . . . . . . . . . . . . . . . Time . | . . . . . . . . . . . . . . . . . . . . . Total Robot Build Rating . | . . . . . . . . . . . . . . . . . . . . . Part Schematics Acquired 17 | . . . . . . . . . 1 . 1 6 2 5 2 . . . . . Parts Built 1 | . . . . . . . . . . . . . . . 1 . . . . . Authchips 1 | . . . . . . . . . . . . . . . 1 . . . . . Time 126 | . . . . . . . . . . . . . . . 126 . . . . . Total Part Build Rating 5 | . . . . . . . . . . . . . . . 5 . . . . . Part Studies Acquired 2 | . . . 1 . . . . 1 . . . . . . . . . . . . Parts Repaired 3 | . . . . . . . . 2 . . . 1 . . . . . . . . Time 202 | . . . . . . . . 132 . . . 70 . . . . . . . . Parts Recycled . | . . . . . . . . . . . . . . . . . . . . . Recycled Matter . | . . . . . . . . . . . . . . . . . . . . . Retrieved Matter . | . . . . . . . . . . . . . . . . . . . . . Retrieved Components 31 | . . . 3 . . . . 6 . 22 . . . . . . . . . . Parts Scanalyzed . | . . . . . . . . . . . . . . . . . . . . . Part Schematics Acquired . | . . . . . . . . . . . . . . . . . . . . . Parts Damaged . | . . . . . . . . . . . . . . . . . . . . . Bothacking | -11 -10 -10 -9 -9 -9 -8 -8 -7 -7 -7 -7 -5 -4 -4 -4 -3 -3 -2 -1 -1 ------------ Run | Yrd Mat Min Mat Min Exi Min Mat Fac Sto Rec Scr Fac Fac Was Fac Res DSF Res Acc Gar Used RIF Installer . | . . . . . . . . . . . . . . . . . . . . . Robots Hacked . | . . . . . . . . . . . . . . . . . . . . . Non-combat . | . . . . . . . . . . . . . . . . . . . . . Combat . | . . . . . . . . . . . . . . . . . . . . . Robot Hacks Applied . | . . . . . . . . . . . . . . . . . . . . . Relay Couplers Released . | . . . . . . . . . . . . . . . . . . . . . Fabnet Peak Effective % . | . . . . . . . . . . . . . . . . . . . . . Robots Rewired 34 | . . . . . . . . . . 34 . . . . . . . . . . Allies Hacked 2 | . . . . . . . . . . . . . . . 1 . . 1 . . Hacks Repelled . | . . . . . . . . . . . . . . . . . . . . . Allies | -11 -10 -10 -9 -9 -9 -8 -8 -7 -7 -7 -7 -5 -4 -4 -4 -3 -3 -2 -1 -1 -------- Run | Yrd Mat Min Mat Min Exi Min Mat Fac Sto Rec Scr Fac Fac Was Fac Res DSF Res Acc Gar Total Allies 84 | . . 2 . . . . . . 10 34 . . . 18 6 . . 14 . . Largest Group 33 | . . 2 2 . . . . . 10 33 24 . . 18 17 . . 10 . . Highest-Rated Group 716 | . . 46 46 . . . . . 173 716 638 . . 638 612 . . 94 . . Highest-Rated Ally 50 | . . 31 31 . . . . . 29 40 40 . . 50 50 . . 10 . . Total Orders 65 | . . . . . . . . . 1 10 54 . . . . . . . . . STAY 32 | . . . . . . . . . 1 9 22 . . . . . . . . . FOLLOW 26 | . . . . . . . . . . 1 25 . . . . . . . . . GUARD 1 | . . . . . . . . . . . 1 . . . . . . . . . AID 6 | . . . . . . . . . . . 6 . . . . . . . . . Ally Attacks 568 | . . . 26 . . . . . 42 14 99 . . 104 80 . . 203 . . Total Damage 11597 | . . . 308 . . . . . 565 267 2116 . . 3258 2220 . . 2863 . . Kills 91 | . . . 6 . . . . . 5 1 20 . . 7 14 . . 38 . . Allies Corrupted 8 | . . . . . . . . . . . . . . . 5 . . 3 . . Allies Melted . | . . . . . . . . . . . . . . . . . . . . . Intel | -11 -10 -10 -9 -9 -9 -8 -8 -7 -7 -7 -7 -5 -4 -4 -4 -3 -3 -2 -1 -1 ------- Run | Yrd Mat Min Mat Min Exi Min Mat Fac Sto Rec Scr Fac Fac Was Fac Res DSF Res Acc Gar Active Infowar (turns) 9717 | 10 390 . 505 81 . . 1 73 1077 2160 3841 150 . 419 831 . . 179 . . Optics 179 | . . . . . . . . . . . . . . . . . . 179 . . Terrain 1563 | . . . 307 . . . . . . . . 6 . 419 831 . . . . . Traps 1 | . . . . . . . 1 . . . . . . . . . . . . . Seismic 986 | 10 390 . 505 81 . . . . . . . . . . . . . . . . Jamming 7151 | . . . . . . . . 73 1077 2160 3841 . . . . . . . . . ECM 144 | . . . . . . . . . . . . 144 . . . . . . . . Robot Analysis Total . | . . . . . . . . . . . . . . . . . . . . . Derelict Logs Recovered 1 | . . 1 . . . . . . . . . . . . . . . . . . Drone Launches . | . . . . . . . . . . . . . . . . . . . . . Drone Recoveries . | . . . . . . . . . . . . . . . . . . . . . Exploration | -11 -10 -10 -9 -9 -9 -8 -8 -7 -7 -7 -7 -5 -4 -4 -4 -3 -3 -2 -1 -1 ------------- Run | Yrd Mat Min Mat Min Exi Min Mat Fac Sto Rec Scr Fac Fac Was Fac Res DSF Res Acc Gar Turns Passed 14969 | 92 429 766 542 434 308 175 507 1004 1077 2160 3911 853 139 544 1084 33 54 580 211 66 Spaces Moved 8930 | 70 355 639 377 267 315 164 298 535 577 978 1545 599 139 341 550 60 97 651 311 62 Core 1323 | 7 . . . . . . . . . . . 392 28 . 26 60 97 340 311 62 Treads . | . . . . . . . . . . . . . . . . . . . . . Legs . | . . . . . . . . . . . . . . . . . . . . . Wheels 7605 | 63 355 639 377 267 315 164 298 535 577 978 1545 207 111 339 524 . . 311 . . Hover 2 | . . . . . . . . . . . . . . 2 . . . . . . Flight . | . . . . . . . . . . . . . . . . . . . . . Fastest Speed 50 | 50 90 105 100 115 85 100 70 120 120 150 135 50 50 90 50 50 50 50 50 50 Average Speed 118 | 86 91 105 106 118 95 100 101 124 141 150 158 97 81 142 133 50 50 70 50 50 Slowest Speed 400 | 90 105 105 115 145 115 100 130 135 150 150 165 250 90 245 210 50 50 400 50 50 Overloaded Moves . | . . . . . . . . . . . . . . . . . . . . . Propulsion Burnouts . | . . . . . . . . . . . . . . . . . . . . . Robots Hopped . | . . . . . . . . . . . . . . . . . . . . . Potential Cave-ins 5 | . . . . . . . . 3 . . 2 . . . . . . . . . Cave-ins Triggered . | . . . . . . . . . . . . . . . . . . . . . Exploration Rate (%) 43 | 4 47 93 37 60 68 49 24 20 87 99 56 12 3 96 20 2 89 22 11 19 Regions Visited 20 Branch Regions 7 Pre-discovered Areas 4 | . . . . . 1 . . . . 3 . . . . . . . . . . Known Exits Taken 4 | . . . . . . . . 1 . . . . . . . 1 . 1 1 . Unknown Exits Taken 13 | 1 1 1 1 1 1 1 1 . 1 1 1 1 . . 1 . . . . . Scrap Searched 4 | . . 1 . 1 . . . . . . 2 . . . . . . . . . Spaces Dug 32 | . . . . . . . . 12 3 . 2 . . . 5 . . 10 . . Terrain Destroyed 639 | . . . . 97 . . 11 58 31 8 186 6 . . 183 . . 41 18 . Melee . | . . . . . . . . . . . . . . . . . . . . . Projectile 114 | . . . . . . . 11 19 31 8 5 6 . . 32 . . 2 . . AOE 525 | . . . . 97 . . . 39 . . 181 . . . 151 . . 39 18 . Terrain Rammed . | . . . . . . . . . . . . . . . . . . . . . Walls Destroyed . | . . . . . . . . . . . . . . . . . . . . . Machines Disabled . | . . . . . . . . . . . . . . . . . . . . . Actions | -11 -10 -10 -9 -9 -9 -8 -8 -7 -7 -7 -7 -5 -4 -4 -4 -3 -3 -2 -1 -1 --------- Run | Yrd Mat Min Mat Min Exi Min Mat Fac Sto Rec Scr Fac Fac Was Fac Res DSF Res Acc Gar Total 12582 | 91 413 724 460 320 322 169 437 807 754 1633 2979 797 163 400 741 62 100 748 365 97 Wait 2547 | . 12 79 30 . . . 15 208 68 534 1374 97 15 41 23 . . 12 39 . Move 8912 | 69 354 638 376 266 314 163 297 534 576 977 1544 598 139 340 549 59 96 651 310 62 Hop . | . . . . . . . . . . . . . . . . . . . . . Pick Up 144 | 10 13 2 9 2 2 1 26 16 13 5 8 10 1 . 7 . . 16 3 . Fast Attach 44 | . . . 2 . . . 4 1 8 . . 5 3 9 7 1 2 2 . . Attach 116 | 7 2 . 3 7 4 1 19 6 2 . 14 16 . . 9 . . 19 7 . Detach 30 | . . . . . 1 . 3 . 1 . 3 5 . . 5 1 . 8 3 . Swap 57 | . 3 . 4 4 . . 6 1 9 8 12 1 . . 7 . . 2 . . Drop 103 | . 5 . 6 1 1 1 14 7 19 7 4 10 1 10 9 1 . 7 . . Fire 477 | 5 23 5 30 40 . 3 53 34 42 19 14 52 . . 125 . . 30 2 . Melee 42 | . . . . . . . . . . 40 2 . . . . . . . . . Ram 10 | . 1 . . . . . . . . . . 3 4 . . . . 1 1 . Kick . | . . . . . . . . . . . . . . . . . . . . . Crush . | . . . . . . . . . . . . . . . . . . . . . Escape Stasis 51 | . . . . . . . . . 16 . . . . . . . . . . 35 Rewire 49 | . . . . . . . . . . 43 4 . . . . . 2 . . . Trap . | . . . . . . . . . . . . . . . . . . . . . Miscellaneous . | . . . . . . . . . . . . . . . . . . . . . Route ------- -11/Scrapyard -10/Materials (discovered 2 exits: *Mat / [*Min]) -10/Mines -9/Materials (discovered 2 exits: *Mat / [*Min]) -9/Mines -9/Exiles -8/Mines -8/Materials -7/Factory -7/Storage (discovered 2 exits: [*Fac] / *Rec) -7/Recycling (discovered 2 exits: *Fac / [*Scr]) -7/Scraptown -5/Factory -4/Factory (discovered 5 exits: Upp x2 / Ext x2 / Arm) -4/Waste -4/Factory (discovered 6 exits: *Res / Upp x2 / Ext x2 / Arm) -3/Research -3/DSF -2/Research -1/Access -1/Garrison History --------- Turn | Location | Event 36 | -11/Scrapyard | Discovered new exit (range 15) 93 | -11/Scrapyard | Entered Materials 194 | -10/Materials | Discovered new exit (range 7) 313 | -10/Materials | Build established: Mutant 500 | -10/Materials | Discovered new exit (range 16) 522 | -10/Materials | Entered Mines 537 | -10/Mines | Found DCF Scrap (12 items) 633 | -10/Mines | Learned Materials emergency access door positions 638 | -10/Mines | Discovered new exit (range 7) 1288 | -10/Mines | Entered Materials 1288 | -9/Materials | Accompanied by 2 allies 1288 | -9/Materials | Evolved 2 slots: Utility x2 1293 | -9/Materials | Led the pair of lost Derelicts to an unsafe place 1537 | -9/Materials | Discovered new exit (range 3) 1612 | -9/Materials | Central database locked down 1679 | -9/Materials | Discovered new exit (range 9) 1830 | -9/Materials | Entered Mines 1888 | -9/Mines | Assembled infested the area 1938 | -9/Mines | Core integrity fell below 50% 1960 | -9/Mines | Destroyed 19 combat bots 1970 | -9/Mines | Lost 8 parts (1p2n2u3w) 1990 | -9/Mines | Core integrity fell below 20% 2260 | -9/Mines | Deemed a non-threat by the Exiles lab entrance 2260 | -9/Mines | Discovered new exit (range 5) 2264 | -9/Mines | Entered Exiles 2296 | -9/Exiles | Met 8R-AWN 2312 | -9/Exiles | Met EX-HEX 2373 | -9/Exiles | Met EX-DEC 2386 | -9/Exiles | Learned location of Zion (-6) 2444 | -9/Exiles | Met EX-BIN 2456 | -9/Exiles | Aligned with FarCom system 2457 | -9/Exiles | Given EX-Vault access code 2476 | -9/Exiles | Opened EX-Vault 2483 | -9/Exiles | Found Latent Energy Streamer 2501 | -9/Exiles | Warned to stay clear of 0b10 Research branches 2564 | -9/Exiles | Discovered new exit (range 10) 2572 | -9/Exiles | Left Exiles lab with Latent Energy Streamer 2572 | -9/Exiles | Entered Mines 2741 | -8/Mines | Discovered new exit (range 2) 2747 | -8/Mines | Entered Materials 2747 | -8/Materials | Evolved 2 slots: Utility x2 2849 | -8/Materials | Garrison activated, responded to threat 2917 | -8/Materials | Lost 11 parts (1p3n4u3w) 2970 | -8/Materials | Found Prototype Device 3148 | -8/Materials | Core integrity fell below 50% 3234 | -8/Materials | Build established: Hacker-Mutant 3248 | -8/Materials | Discovered new exit (range 4) 3254 | -8/Materials | Entered Factory 3254 | -7/Factory | Evolved 2 slots: Utility x2 3331 | -7/Factory | Central database locked down 3580 | -7/Factory | Identified Active Sensor Suite 3606 | -7/Factory | Hacking Suite fried by hacking feedback 3900 | -7/Factory | Build established: Mutant 3907 | -7/Factory | Repaired Imp. Medium Armor Plating 3952 | -7/Factory | Repaired Imp. Medium Armor Plating 4054 | -7/Factory | Discovered new exit (range 4) 4255 | -7/Factory | Identified exit to Storage 4258 | -7/Factory | Entered Storage 4543 | -7/Storage | Found Prototype Launcher 4637 | -7/Storage | Assisted by bots powering up and referring to "LRC-V3" 4717 | -7/Storage | Discovered new exit (range 9) 4921 | -7/Storage | P-60 Hacker assimilated allied Trooper 4c 4939 | -7/Storage | Build established: Commander-Mutant 4949 | -7/Storage | Used back door to open Recycling access 4949 | -7/Storage | Discovered new exit (range 5) 4952 | -7/Storage | Lost 3 allies 5135 | -7/Storage | Lost 6 allies 5147 | -7/Storage | Met 01-MTF 5156 | -7/Storage | Identified Gui. Missile Launcher 5166 | -7/Storage | Found Prototype Launcher 5166 | -7/Storage | Identified Rocket Array 5335 | -7/Storage | Entered Recycling 5335 | -7/Recycling | Accompanied by 1 ally (01-MTF) 5362 | -7/Recycling | Build established: Mutant 5828 | -7/Recycling | Discovered new exit (range 15) 5830 | -7/Recycling | Build established: Commander-Mutant 6687 | -7/Recycling | Scanned before Scraplab entrance 6828 | -7/Recycling | Entered Scraplab 6841 | -7/Recycling | Discovered new exit (range 2) 7495 | -7/Recycling | Entered Scraptown 7495 | -7/Scraptown | Accompanied by 24 allies 7535 | -7/Scraptown | Heard Great Nut preacher, LISTEN AND RECITE! 7673 | -7/Scraptown | Visited Symbiants 7734 | -7/Scraptown | Visited SPCMW 7770 | -7/Scraptown | Visited Awakened 7787 | -7/Scraptown | Visited IN-MT5's Study 7808 | -7/Scraptown | Visited Fellowship of the Rings 8231 | -7/Scraptown | Discovered new exit (range 11) 8437 | -7/Scraptown | Visited CPS Storage 8977 | -7/Scraptown | Visited Cave Peace 11248 | -7/Scraptown | Attacked by Scraptown defenders 11262 | -7/Scraptown | Found PL-3XN's Ring of Power 11341 | -7/Scraptown | Lost 10 allies 11359 | -7/Scraptown | Destroyed 10 combat bots 11370 | -7/Scraptown | System corruption reached 10% 11395 | -7/Scraptown | Core integrity fell below 50% 11406 | -7/Scraptown | Entered Factory 11406 | -5/Factory | Evolved 4 slots: Utility x4 11409 | -5/Factory | Destroyed 10 combat bots 11431 | -5/Factory | Lost 16 parts (1p2n10u3w) 11471 | -5/Factory | System corruption reached 10% 11540 | -5/Factory | Repaired Enh. Nuclear Core? 11551 | -5/Factory | Tech Extrapolator generated special schematic: Deep Structural Scanner 11608 | -5/Factory | Build established: Mutant 11679 | -5/Factory | Tech Extrapolator generated special schematic: Machine Rigger 11765 | -5/Factory | Garrison activated, responded to threat 11852 | -5/Factory | Lost 3 parts (1p2u) 11917 | -5/Factory | Lost 6 parts (1p1n2u2w) 12258 | -5/Factory | Discovered new exit (range 4) 12259 | -5/Factory | Entered another Factory area 12259 | -4/Factory | Evolved 2 slots: Utility x2 12266 | -4/Factory | Identified exit to Upper Caves 12266 | -4/Factory | Identified exit to Extension 12266 | -4/Factory | Identified exit to Armory 12283 | -4/Factory | Found Quantum Capacitor 12398 | -4/Factory | Sucked down chute 12398 | -4/Factory | Entered Waste 12407 | -4/Waste | Spotted C-40 Crusher 12413 | -4/Waste | Warlord forces began an assault 12441 | -4/Waste | Spotted C-40 Crusher 12449 | -4/Waste | Spotted C-40 Crusher 12450 | -4/Waste | Allies destroyed C-40 Crusher 12455 | -4/Waste | Allies destroyed C-40 Crusher 12474 | -4/Waste | Spotted C-40 Crusher 12476 | -4/Waste | Allies destroyed C-40 Crusher 12727 | -4/Waste | Build established: Hacker-Skirmisher 12767 | -4/Waste | Discovered new exit (range 16) 12839 | -4/Waste | Found Damper Plating 12942 | -4/Waste | Entered Factory 12942 | -4/Factory | Accompanied by 17 allies 13062 | -4/Factory | Lost 5 allies 13136 | -4/Factory | Fabricated IN-MT5's Pitchfork "Insurrection"? 13183 | -4/Factory | Reprogrammed and armed K-01 Serf 13183 | -4/Factory | Reprogrammed and armed K-01 Serf 13344 | -4/Factory | Reprogrammed and armed K-01 Serf 13405 | -4/Factory | Lost 10 allies 13436 | -4/Factory | Tech Extrapolator generated special schematic: Electrostorm Shotgun 13442 | -4/Factory | First assault squad dispatched 13710 | -4/Factory | Destroyed 7 combat bots 13720 | -4/Factory | Reprogrammed and armed K-01 Serf 13722 | -4/Factory | Reprogrammed and armed K-01 Serf 13778 | -4/Factory | Lost 3 allies 13795 | -4/Factory | System corruption reached 10% 13804 | -4/Factory | Lost 3 parts (3u) 13812 | -4/Factory | Reprogrammed and armed K-01 Serf 14006 | -4/Factory | Build established: Mutant 14013 | -4/Factory | Core integrity fell below 50% 14015 | -4/Factory | Discovered new exit (range 16) 14026 | -4/Factory | Entered Research 14026 | -3/Research | Evolved 2 slots: Utility x2 14040 | -3/Research | Identified exit to DSF 14052 | -3/Research | Lost 10 parts (1p2n4u3w) 14059 | -3/Research | Entered DSF 14094 | -3/DSF | Additional patrols routed to DSF 14096 | -3/DSF | Core integrity fell below 50% 14106 | -3/DSF | Discovered new exit (range 15) 14113 | -3/DSF | Entered Research 14113 | -2/Research | Evolved 2 slots: Utility x2 14124 | -2/Research | Lost 3 parts (3u) 14198 | -2/Research | Reprogrammed and armed K-01 Serf 14201 | -2/Research | Reprogrammed and armed K-01 Serf 14203 | -2/Research | Reprogrammed and armed K-01 Serf 14206 | -2/Research | Reprogrammed and armed K-01 Serf 14207 | -2/Research | Reprogrammed and armed K-01 Serf 14209 | -2/Research | Reprogrammed and armed K-01 Serf 14210 | -2/Research | Reprogrammed and armed K-01 Serf 14222 | -2/Research | Reprogrammed and armed K-01 Serf 14222 | -2/Research | Reprogrammed and armed K-01 Serf 14223 | -2/Research | Reprogrammed and armed K-01 Serf 14288 | -2/Research | Reprogrammed and armed K-01 Serf 14350 | -2/Research | System corruption reached 10% 14350 | -2/Research | Reprogrammed and armed K-01 Serf 14363 | -2/Research | First assault squad dispatched 14402 | -2/Research | Reprogrammed and armed K-01 Serf 14405 | -2/Research | Lost 3 allies 14412 | -2/Research | Reprogrammed and armed K-01 Serf 14451 | -2/Research | P-80 Master assimilated allied K-01 Serf 14457 | -2/Research | Spotted B-90 Cyclops 14500 | -2/Research | Lost 3 parts (1n2u) 14669 | -2/Research | Discovered new exit (range 7) 14672 | -2/Research | Identified exit to Access 14693 | -2/Research | Entered Access 14693 | -1/Access | Evolved 2 slots: Utility x2 14899 | -1/Access | Identified exit to Garrison 14904 | -1/Access | Entered Garrison 14934 | -1/Garrison | Lost 6 parts (1n5u) 14951 | -1/Garrison | Spotted B-99 Colossus 14952 | -1/Garrison | Core integrity fell below 50% 14955 | -1/Garrison | Triggered checkpoint 14959 | -1/Garrison | Core integrity fell below 20% 14970 | -1/Garrison | Destroyed by S-43 Plague with Heavy Machine Gun Last Messages --------------- 14947_ Field strength at 4. 14948_ Stasis field depleted. 14951_ Penetrated by Slug. 14955_ Beams of light sweep through the air. An alarm sounds. 14955_ Penetrated by Slug. 14955_ Slug penetrates Reinforced Barrier. Garrison Door activated. 14958_ Slug penetrates Wall. 14959_ System corrupted: Energy discharge (-23). 14960_ Triggered Stasis Trap. 14960_ A bubble of rippling energy engulfs the area. 14960_ Field strength at 94. 14961_ Field strength at 88. 14962_ Field strength at 76. 14963_ Field strength at 51. 14964_ Field strength at 27. 14965_ Field strength at 9. 14965_ Stasis field depleted. Map ----- +----------------------------------------------------+ | ?????????????????????????????????????????????????? | | ?????????????????????????????????????????????????? | | ???????????????????????????????????????????# ??? | | ????????????????????????????????####?#""""## #?? | | ???????????????????????????????? #?? | | ???????????????????????????????? #?? | | ???????????????????????????????? ? #?? | | ????????????????????????????????# ## ## #?? | | ??????????????????????????????### ## ## #?? | | ??????????????????????????????# "?? | | ??????????????????????????????# "?? | | ??????????????????????????????? "?? | | ???????????????????????????????? g "?? | | ????????????????????????????????# ## "" #?? | | ??????????????????????########### ## ## ### | | ??????????????????????# g BBg | | ????????????????????????? BB % | | ????????????????????????????????# Yg g ### | | ???????????????????????????s????## ## ## ##?? | | ?????????????????????????????????#g ## ## #??? | | ??????????????????????#??????????# ######## #??? | | ??????????????????????# ?????????# #??????# #??? | | ??????????????????????# ????????s# #??????# #??? | | ??????????????????????# ????s???# #??????# #??? | | ?????????????????###### ######### #??????# #??? | | ?????????????# @ sss #??????# #### | | ?????????????# #??????# | | ?????????????# ####### ########### #??????# | | ??????????????????????# ??????????? #??????####### | | ??????????????????????#???????????? #????????????# | | ??????????????????????????????????? #????????????? | | ??????????????????????????????????? #????????????? | | ??????????????????????????????????? #????????????? | | ??????????????????????????????????? #????????????? | | ??????????????????????????????????? #????????????? | | ????????????????????????????????????T????????????? | | ????????????????????????????????????#????????????? | | ?????????????????????????g???????g???????????????? | | ?????????????????????????g???????g???????????????? | | ?????????????????????????g???????g???????????????? | | ?????????????????????????????????????????????????? | | ?????????????????????????????????????????????????? | | ?????????????????????????????????????????????????? | | ?????????????????????????????????????????????????? | | ?????????????????????????????????????????????????? | | ?????????????????????????????????????????????????? | | ?????????????????????????????????????????????????? | | ?????????????????????????????????????????????????? | | ?????????????????????????????????????????????????? | | ?????????????????????????????????????????????????? | +----------------------------------------------------+ Best States ------------- Heat Dissipation 75 Energy Generation 35 Energy Capacity 800 Matter Stores 300 Matter Capacity 300 Sight Range 20 Terrain Scan Range 20 Terrain Scan Density 210 ECM Strength 1 Jamming Range 12 Power Amplification 20 Corruption Block 15 Armor Coverage 2050 Resistance: KI 30 Resistance: TH 15 Resistance: EM 90 Core Shielding 30 Evasion (%) 50 Targeting Accuracy 8 Core Analysis 9 Offensive Hacking 30 Authchip Count 1 Item Schematics ----------------- Chainsword | -7/Storage | Hacked IN-MT5's Pitchfork "Insurrection" | -7/Scraptown | Archive Deep Structural Scanner | -5/Factory | Extrapolated Mak. Kinetic Plating | -5/Factory | Extrapolated Machine Rigger | -5/Factory | Extrapolated Mak. Hacking Suite | -5/Factory | Extrapolated Mak. Terrain Scanner | -5/Factory | Extrapolated Mak. Coolant Network | -5/Factory | Extrapolated Mak. Targeting Computer | -4/Factory | Extrapolated Multitool | -4/Factory | Extrapolated Mak. Power Source | -4/Waste | Extrapolated Mak. Medium Armor Plating | -4/Waste | Extrapolated Mak. Ablative Armor | -4/Waste | Extrapolated Hvy. Beamcaster | -4/Waste | Extrapolated Hvy. Battle Rifle | -4/Waste | Extrapolated Mak. Core Shielding | -4/Factory | Extrapolated Electrostorm Shotgun | -4/Factory | Extrapolated Robot Schematics ------------------ None Fabricated ------------ IN-MT5's Pitchfork "Insurrection" | x1 | -4/Factory | Authchip Repaired ---------- Imp. Medium Armor Plating | 16% | -7/Factory Imp. Medium Armor Plating | 4% | -7/Factory Enh. Nuclear Core | 6% | -5/Factory Studied --------- Wheel | -9/Materials | Hacked Arm. Huge Wheel | -7/Factory | Hacked Alien Tech Used ----------------- None Achievements -------------- Blue Mage Challenges ------------ None Game ------ Seed CentriumAnalysisSubcomponent Manual? 0 Play Time 02:33:37 Cumulative 655.7 hours Start 2026.01.23 @ 12:10:00 End 2026.01.23 @ 16:17:27 Sessions 5 Manual Loads 0 Difficulty Rogue Special Mode None Game No. 825 Rogue 825 Adventurer 0 Explorer 0 Win Type - Total 24 Types 11/1/3/3/2/0/2/2/0/0 Lore% 96 Gallery% 92 Achievement% 81 Wizard Run 0 Options --------- Layout 2 ASCII 0 Keyboard 0 Movement Mouse Keybinds 0 Fullscreen 2 Font 24/Tamsyn Map View 50x49 Zoom Use 0% Tactical HUD 1 Map Filters NONE Filters NONE Steam 1 RUN: e5765646-4c11-4826-b3d0-da83e346f908